bitfinex/quotes_BTCUSD_20250418
["timestamp","ask_amount","ask_price","bid_price","bid_amount"]
[1744983907132,1.31942536,84449.0,84448.0,43.80051947]
[1744983907510,1.57470472,84449.0,84448.0,43.80051947]
[1744983907750,1.31942536,84449.0,84448.0,43.80051947]
[1744983908562,1.81153404,84449.0,84448.0,43.80051947]
[1744983908844,2.00199195,84449.0,84448.0,43.71778746]
[1744983909015,1.88254404,84449.0,84448.0,43.62608559]
[1744983912379,2.99046404,84449.0,84448.0,43.62608559]
[1744983913748,2.49835536,84449.0,84448.0,43.62608559]
[1744983915733,2.49835536,84449.0,84448.0,43.60208559]
[1744983915880,2.49835536,84449.0,84448.0,43.57607451]
[1744983916406,2.62285536,84449.0,84448.0,43.56590671]
[1744983917288,2.6449254,84449.0,84448.0,43.56590671]
[1744983918714,3.13703408,84449.0,84448.0,43.56590671]
[1744983918922,3.11496404,84449.0,84448.0,43.56590671]
[1744983919726,2.62285536,84449.0,84448.0,43.56590671]
[1744983920065,2.62285536,84449.0,84448.0,43.41253988]
[1744983920846,2.65838536,84449.0,84448.0,43.41253988]
[1744983922368,2.62285536,84449.0,84448.0,43.41253988]
[1744983922852,2.64492477,84449.0,84448.0,43.41253988]
[1744983923473,2.76437268,84449.0,84448.0,43.41253988]
[1744983923893,2.74230327,84449.0,84448.0,43.30780376]
[1744983924042,2.62285536,84449.0,84448.0,43.30780376]
[1744983924829,3.11496404,84449.0,84448.0,43.30780376]
[1744983925158,2.98304404,84449.0,84448.0,43.30780376]
[1744983925369,3.11504404,84449.0,84448.0,43.30780376]
[1744983930141,3.22851712,84449.0,84448.0,43.30780376]
[1744983932419,3.11504404,84449.0,84448.0,43.30780376]
[1744983934566,2.62293536,84449.0,84448.0,43.30780376]
[1744983935691,3.11504404,84449.0,84448.0,43.30780376]
[1744983946529,2.99054404,84449.0,84448.0,43.30780376]
[1744983947425,2.98954404,84449.0,84448.0,43.30780376]
[1744983947600,2.99054404,84449.0,84448.0,43.30780376]
[1744983948859,2.90499319,84449.0,84448.0,43.30880376]
[1744983949219,2.91953404,84449.0,84448.0,43.30880376]
[1744983949588,2.91945404,84449.0,84448.0,43.30880376]
[1744983951314,2.91845404,84449.0,84448.0,43.30680376]
[1744983955970,2.42634536,84449.0,84448.0,43.30680376]
[1744983956584,2.91845404,84449.0,84448.0,43.30680376]
[1744983960280,2.42634536,84449.0,84448.0,43.30680376]
[1744983960978,2.78653404,84449.0,84448.0,43.30680376]
[1744983961159,2.91845404,84449.0,84448.0,43.30680376]
[1744983961358,2.78653404,84449.0,84448.0,43.30680376]
[1744983961558,2.91845404,84449.0,84448.0,43.30680376]
[1744983961762,2.98946404,84449.0,84448.0,43.30680376]
[1744983967341,2.91845404,84449.0,84448.0,43.30680376]
[1744983967512,2.91845404,84449.0,84448.0,43.30633791]
[1744983968561,2.50565404,84449.0,84448.0,43.30633791]
[1744983968722,2.37373404,84449.0,84448.0,43.30633791]
[1744983968922,2.50565404,84449.0,84448.0,43.30633791]
[1744983977994,2.50565404,84449.0,84448.0,43.30733791]
[1744983981648,2.50565404,84449.0,84448.0,43.1403103]
[1744983981846,2.37373404,84449.0,84448.0,43.1403103]
[1744983982051,2.50565404,84449.0,84448.0,43.1403103]
[1744983984293,2.21882472,84449.0,84448.0,43.1403103]
[1744983986404,1.87882472,84449.0,84448.0,43.1403103]
[1744983986756,1.84573686,84449.0,84448.0,43.1403103]
[1744983990118,1.71381686,84449.0,84448.0,43.1403103]
[1744983990322,1.83573686,84449.0,84448.0,43.1403103]
[1744983991504,1.21170818,84449.0,84448.0,43.1403103]
[1744983991705,1.37679217,84449.0,84448.0,43.1403103]
[1744983992975,1.24487217,84449.0,84448.0,43.1403103]
[1744983993234,1.37679217,84449.0,84448.0,43.1403103]
[1744983994635,1.34362818,84449.0,84448.0,43.1403103]
[1744983997088,1.35362818,84449.0,84448.0,43.1403103]
[1744984004315,1.35362818,84449.0,84448.0,43.14004556]
[1744984007921,1.35362818,84449.0,84448.0,43.14104556]
[1744984011273,1.35362818,84449.0,84448.0,43.13904556]
[1744984011419,1.35362818,84449.0,84448.0,43.14004556]
[1744984012685,0.24570818,84449.0,84448.0,43.14004556]
[1744984016569,0.14694579,84449.0,84448.0,43.14004556]
[1744984016773,0.27882579,84449.0,84448.0,43.14004556]
[1744984021782,0.27882579,84449.0,84448.0,43.13904556]
[1744984027235,0.2746376,84449.0,84448.0,43.14004556]
[1744984027445,0.2656376,84449.0,84448.0,43.14004556]
[1744984027576,0.1337576,84449.0,84448.0,43.14004556]
[1744984027783,0.2656376,84449.0,84448.0,43.14004556]
[1744984027982,0.2646376,84449.0,84448.0,43.14004556]
[1744984028191,0.23147999,84449.0,84448.0,43.14004556]
[1744984028546,0.09959999,84449.0,84448.0,43.14004556]
[1744984030680,0.08505914,84449.0,84448.0,43.14004556]
[1744984051752,0.08059048,84449.0,84448.0,43.14004556]
[1744984062121,0.08059048,84449.0,84448.0,42.92543664]
[1744984071326,0.08059048,84449.0,84448.0,42.92443664]
[1744984073007,0.08059048,84449.0,84448.0,43.16126877]
[1744984073769,0.08059048,84449.0,84448.0,43.16226877]
[1744984084278,0.08059048,84449.0,84448.0,42.92543664]
[1744984084791,0.08059048,84449.0,84448.0,43.16226877]
[1744984085504,0.08059048,84449.0,84448.0,42.92543664]
[1744984085848,0.08059048,84449.0,84448.0,43.16226877]
[1744984091407,0.0761838,84449.0,84448.0,43.16226877]
[1744984092268,0.0761838,84449.0,84448.0,43.16966331]
[1744984096145,0.0761838,84449.0,84448.0,43.29416331]
[1744984096475,0.0761838,84449.0,84448.0,43.16966331]
[1744984098727,0.0761838,84449.0,84448.0,43.16226877]
[1744984100720,0.0761838,84449.0,84448.0,43.1696634]
[1744984101175,0.0761838,84449.0,84448.0,43.16226877]
[1744984103644,0.0761838,84449.0,84448.0,43.16966341]
[1744984105541,0.0761838,84449.0,84448.0,42.94275394]
[1744984107454,0.0761838,84449.0,84448.0,42.9353593]
[1744984113808,0.0761838,84449.0,84448.0,42.94275394]
[1744984127003,0.0761838,84449.0,84448.0,43.06735394]
[1744984127126,0.0761838,84449.0,84448.0,42.94275394]
[1744984131245,0.0761838,84449.0,84448.0,42.94175394]
[1744984138256,0.0761838,84449.0,84448.0,42.94275394]
[1744984138449,0.0761838,84449.0,84448.0,43.28275394]
[1744984143407,0.0761838,84449.0,84448.0,43.40735394]
[1744984144819,0.5,84450.0,84449.0,0.70142932]
[1744984145018,0.61944791,84450.0,84449.0,0.70142932]
[1744984145212,0.11944791,84450.0,84449.0,0.70142932]
[1744984145487,0.1164216,84450.0,84449.0,0.70142932]
[1744984145658,0.1164216,84450.0,84449.0,0.70882396]
[1744984147064,0.10574161,84450.0,84449.0,0.70882396]
[1744984148870,0.10436048,84450.0,84449.0,0.70882396]
[1744984151764,0.1318,84467.0,84449.0,0.70882396]
[1744984151765,0.1318,84467.0,84466.0,0.23678166]
[1744984152009,0.01517171,84483.0,84482.0,0.23673681]
[1744984152268,0.12664979,84483.0,84482.0,0.23673681]
[1744984152511,0.1404001,84483.0,84482.0,0.23673681]
[1744984152760,0.12585925,84483.0,84482.0,0.23673681]
[1744984158085,0.13206836,84483.0,84482.0,0.23673681]
[1744984159058,0.13206836,84483.0,84482.0,0.2485024]
[1744984164738,0.13190381,84483.0,84482.0,0.2485024]
[1744984181661,0.13190381,84483.0,84482.0,0.01176559]
[1744984181866,0.01454085,84482.0,84453.0,0.0118409]
[1744984182106,0.11944791,84471.0,84470.0,0.23677044]
[1744984185494,0.11944791,84471.0,84470.0,0.23913781]
[1744984197594,0.11944791,84471.0,84470.0,0.23677044]
[1744984198189,0.13498876,84471.0,84470.0,0.23677044]
[1744984204965,0.01454085,84470.0,84469.0,0.23788663]
[1744984205179,0.13398876,84470.0,84469.0,0.23788663]
[1744984220377,0.13398876,84470.0,84469.0,0.00111358]
[1744984220521,0.13398876,84470.0,84469.0,0.23788683]
[1744984220728,0.15255029,84470.0,84469.0,0.23677325]
[1744984225310,0.15255029,84470.0,84469.0,0.2486249]
[1744984229741,0.13398876,84470.0,84469.0,0.2486249]
[1744984276944,0.11944791,84470.0,84469.0,0.2486249]
[1744984290155,0.11944791,84470.0,84469.0,0.01185165]
[1744984290427,0.11944791,84470.0,84468.0,0.23677605]
[1744984290654,0.11944791,84469.0,84468.0,0.23677605]
[1744984313271,0.11944791,84469.0,84467.0,0.25435881]
[1744984313541,0.11944791,84468.0,84467.0,0.25435881]
[1744984320696,0.11944791,84468.0,84467.0,0.00595833]
[1744984320896,0.11944791,84468.0,84467.0,0.01183894]
[1744984321018,0.11944791,84468.0,84467.0,0.24861499]
[1744984330357,0.13398876,84468.0,84467.0,0.24861499]
[1744984331962,0.01454085,84467.0,84464.0,0.01183936]
[1744984332067,0.11944791,84465.0,84464.0,0.24862596]
[1744984332438,0.13541221,84465.0,84464.0,0.24862596]
[1744984333283,0.15095306,84465.0,84464.0,0.24862596]
[1744984342194,0.14995306,84465.0,84464.0,0.24862596]
[1744984354437,0.13541221,84465.0,84464.0,0.24962596]
[1744984354835,0.13541221,84465.0,84464.0,0.25701903]
[1744984355263,0.13541221,84465.0,84464.0,0.2680876]
[1744984360598,0.13541221,84465.0,84464.0,0.25701903]
[1744984367904,0.11944791,84465.0,84464.0,0.25701903]
[1744984371260,0.11944791,84465.0,84464.0,0.25601903]
[1744984371391,0.11944791,84465.0,84464.0,0.25701903]
[1744984372889,0.13168,84481.0,84480.0,0.23674242]
[1744984373054,0.26566876,84481.0,84480.0,0.23674242]
[1744984373240,0.28167947,84481.0,84480.0,0.23674242]
[1744984375108,0.14999947,84481.0,84480.0,0.23674242]
[1744984380867,0.13545862,84481.0,84480.0,0.25161079]
[1744984403051,0.13545862,84481.0,84480.0,0.0957638]
[1744984410579,0.13545862,84481.0,84480.0,0.08089543]
[1744984410751,0.14999947,84481.0,84480.0,0.08089543]
[1744984433545,0.13545862,84481.0,84480.0,0.08089543]
[1744984434489,0.13545862,84481.0,84480.0,0.08828772]
[1744984446749,0.13545862,84481.0,84480.0,0.08089543]
[1744984458919,0.13545862,84481.0,84480.0,0.23674242]
[1744984462832,0.13545862,84481.0,84480.0,0.2441347]
[1744984468513,0.13545862,84481.0,84480.0,0.23674242]
[1744984479631,0.13545862,84481.0,84480.0,0.24413478]
[1744984480771,0.13545862,84481.0,84480.0,0.23674242]
[1744984486153,0.13545862,84481.0,84480.0,0.24413479]
[1744984486515,0.13545862,84481.0,84480.0,0.23674242]
[1744984494849,0.13545862,84481.0,84480.0,0.24413478]
[1744984495565,0.13545862,84481.0,84480.0,0.23674242]
[1744984501188,0.5,84482.0,84481.0,0.57673962]
[1744984501389,0.00091763,84483.0,84482.0,0.23673681]
[1744984501593,0.00091763,84483.0,84482.0,0.24649591]
[1744984501829,0.00091763,84483.0,84482.0,0.24412884]
[1744984502557,0.00091763,84483.0,84482.0,0.58412884]
[1744984502890,1e-08,84486.0,84485.0,0.57672841]
[1744984503107,0.000842,84492.0,84488.0,0.57672]
[1744984503278,0.000842,84492.0,84489.0,0.5767172]
[1744984503478,0.00091201,84490.0,84489.0,0.5767172]
[1744984503793,0.00091201,84490.0,84489.0,0.58410923]
[1744984506456,0.00091201,84490.0,84489.0,0.24410923]
[1744984508096,0.00091201,84490.0,84489.0,0.25801404]
[1744984508491,0.00091201,84490.0,84489.0,0.59801404]
[1744984508728,1e-08,84490.0,84489.0,0.59801404]
[1744984509927,0.000842,84495.0,84489.0,0.59801404]
[1744984509928,0.00050396,84496.0,84493.0,0.01183529]
[1744984510127,0.00055732,84496.0,84495.0,0.23670039]
[1744984510530,0.00055732,84496.0,84495.0,0.24409242]
[1744984513256,0.00055732,84496.0,84495.0,0.58409242]
[1744984515936,0.00055732,84496.0,84495.0,0.59511818]
[1744984517226,0.00055732,84496.0,84495.0,0.58409242]
[1744984522883,0.13156,84505.0,84499.0,0.23668837]
[1744984523225,0.01467357,84500.0,84499.0,0.57668837]
[1744984523470,0.13156,84505.0,84500.0,0.23668639]
[1744984529068,0.0592,84511.0,84500.0,0.57668639]
[1744984530400,0.0592,84511.0,84508.0,0.23666398]
[1744984530593,2.961472,84512.0,84510.0,0.57665838]
[1744984530795,0.85890165,84512.0,84511.0,0.57665558]
[1744984530994,0.05896681,84512.0,84511.0,0.57665558]
[1744984533508,0.05896681,84512.0,84511.0,0.34]
[1744984533983,0.05896681,84512.0,84511.0,0.57665558]
[1744984536226,0.05896681,84512.0,84511.0,0.59020701]
[1744984537028,0.05896681,84512.0,84511.0,0.25020701]
[1744984541709,0.05896681,84512.0,84511.0,0.59020701]
[1744984570216,0.05896681,84512.0,84511.0,0.35355143]
[1744984570548,0.05896681,84512.0,84511.0,0.59020701]
[1744984570924,0.05896681,84512.0,84511.0,0.59120701]
[1744984571329,0.05896681,84512.0,84511.0,0.59859553]
[1744984580151,0.05896681,84512.0,84511.0,0.59120701]
[1744984583345,0.05896681,84512.0,84511.0,0.23765558]
[1744984584764,0.05896681,84512.0,84511.0,0.2512086]
[1744984585180,0.05896681,84512.0,84511.0,0.25859712]
[1744984588426,0.05896681,84512.0,84511.0,0.2512086]
[1744984603263,0.05996681,84512.0,84510.0,0.22709323]
[1744984603539,0.05996681,84512.0,84511.0,0.23665558]
[1744984617829,0.05996681,84512.0,84511.0,0.24404439]
[1744984619767,0.05996681,84512.0,84511.0,0.23665558]
[1744984620881,0.05996681,84512.0,84511.0,0.24404458]
[1744984635515,0.05996681,84512.0,84511.0,0.23665558]
[1744984651669,0.06096681,84512.0,84511.0,0.23665558]
[1744984666118,0.01454085,84511.0,84502.0,0.01183403]
[1744984666332,0.11944791,84510.0,84507.0,0.24849968]
[1744984666529,0.13430043,84510.0,84507.0,0.24849968]
[1744984666739,0.13430043,84510.0,84506.0,0.24850161]
[1744984666909,0.13430043,84510.0,84507.0,0.01183333]
[1744984667519,0.13430043,84510.0,84508.0,0.2366631]
[1744984667837,0.13430043,84510.0,84507.0,0.24849785]
[1744984669245,0.13430043,84510.0,84507.0,0.01183333]
[1744984670044,0.3709596,84510.0,84507.0,0.01183333]
[1744984670743,0.24849544,84509.0,84506.0,0.01183347]
[1744984670951,0.24849544,84509.0,84506.0,0.24850189]
[1744984670952,0.11944791,84508.0,84506.0,0.24850189]
[1744984671147,0.13430034,84508.0,84506.0,0.24850189]
[1744984671347,0.13530034,84508.0,84506.0,0.24850189]
[1744984672955,0.13530034,84508.0,84507.0,0.23666678]
[1744984683218,0.13530034,84508.0,84506.0,0.24850189]
[1744984684415,0.13530034,84508.0,84507.0,0.23666678]
[1744984685559,0.14713353,84508.0,84505.0,0.24850571]
[1744984685862,0.13530034,84508.0,84505.0,0.01183361]
[1744984686925,0.13530034,84508.0,84507.0,0.23666678]
[1744984693096,0.01585243,84508.0,84507.0,0.23666678]
[1744984693417,0.001,84508.0,84507.0,0.23666678]
[1744984693839,0.01583958,84508.0,84507.0,0.23666678]
[1744984694035,0.001,84508.0,84507.0,0.23666678]
[1744984694447,0.001,84508.0,84507.0,0.24405647]
[1744984702036,0.001,84508.0,84507.0,0.23666678]
[1744984702766,0.001,84508.0,84507.0,0.05463189]
[1744984704803,0.01585209,84508.0,84507.0,0.05463189]
[1744984708317,0.001,84508.0,84507.0,0.05463189]
[1744984708824,0.01584746,84508.0,84507.0,0.05463189]
[1744984711430,0.001,84508.0,84507.0,0.05463189]
[1744984711637,0.002,84508.0,84507.0,0.05463189]
[1744984712131,0.01684746,84508.0,84507.0,0.05463189]
[1744984714620,0.002,84508.0,84506.0,0.09863027]
[1744984714845,0.002,84508.0,84507.0,0.23666678]
[1744984728600,0.01684999,84508.0,84507.0,0.23666678]
[1744984728800,0.002,84508.0,84507.0,0.23666678]
[1744984729008,0.24850011,84507.0,84504.0,0.23667473]
[1744984729210,0.23666987,84506.0,84503.0,0.01680902]
[1744984729411,0.23666987,84506.0,84496.0,0.01183487]
[1744984729412,0.01183572,84490.0,84485.0,0.23672616]
[1744984729621,0.01183529,84493.0,84485.0,0.23672616]
[1744984729622,0.01183558,84491.0,84487.0,0.24855703]
[1744984729798,0.01484549,84489.0,84487.0,0.24855703]
[1744984730012,0.01484549,84489.0,84485.0,0.24855946]
[1744984730013,0.24855534,84489.0,84485.0,0.24855946]
[1744984730354,0.01484487,84488.0,84487.0,0.24855664]
[1744984730713,0.24853555,84495.0,84489.0,0.01183586]
[1744984730914,0.13128306,84494.0,84490.0,0.24854785]
[1744984731160,0.38283365,84494.0,84491.0,0.23671043]
[1744984731454,0.38383365,84494.0,84491.0,0.23671043]
[1744984731658,0.24854398,84493.0,84490.0,0.24854785]
[1744984731859,0.0148451,84493.0,84492.0,0.2367088]
[1744984732458,0.01183572,84490.0,84486.0,0.23672557]
[1744984732688,0.11944791,84489.0,84488.0,0.248556]
[1744984733025,0.13429283,84489.0,84488.0,0.248556]
[1744984741674,0.13529283,84489.0,84488.0,0.248556]
[1744984743706,0.12044791,84489.0,84488.0,0.248556]
[1744984744145,0.13520892,84489.0,84488.0,0.248556]
[1744984745560,0.12044791,84489.0,84488.0,0.248556]
[1744984753008,0.13520892,84489.0,84488.0,0.248556]
[1744984754407,0.12044791,84489.0,84488.0,0.248556]
[1744984755307,0.13520892,84489.0,84488.0,0.248556]
[1744984757338,0.12044791,84489.0,84488.0,0.248556]
[1744984761138,0.13520892,84489.0,84488.0,0.248556]
[1744984762181,0.12044791,84489.0,84488.0,0.248556]
[1744984765144,0.12044791,84489.0,84488.0,0.05708473]
[1744984765503,0.12044791,84489.0,84488.0,0.06892073]
[1744984768083,0.12044791,84489.0,84487.0,0.14599785]
[1744984768634,0.12044791,84489.0,84488.0,0.23672]
[1744984769477,0.12044791,84489.0,84488.0,0.248556]
[1744984771679,0.12144791,84489.0,84488.0,0.248556]
[1744984772855,0.002,84489.0,84488.0,0.248556]
[1744984780137,0.002,84489.0,84488.0,0.25594695]
[1744984791315,0.01183459,84498.0,84496.0,0.23669589]
[1744984791530,0.13420979,84497.0,84496.0,0.23669589]
[1744984798760,0.13420979,84497.0,84495.0,0.24853481]
[1744984799160,0.13420979,84497.0,84496.0,0.23669759]
[1744984800234,0.14704452,84497.0,84492.0,0.01183544]
[1744984800433,0.24853476,84496.0,84493.0,0.24854128]
[1744984800693,0.11944791,84495.0,84493.0,0.24854128]
[1744984801000,0.11944791,84495.0,84494.0,0.23670319]
[1744984801613,0.12044791,84495.0,84494.0,0.23670319]
[1744984801820,0.12144791,84495.0,84493.0,0.23670572]
[1744984802837,0.12144791,84495.0,84494.0,0.23670319]
[1744984803140,0.01183515,84494.0,84491.0,0.01437813]
[1744984803348,0.11944791,84494.0,84493.0,0.23670599]
[1744984803962,0.11944791,84494.0,84492.0,0.23670663]
[1744984805757,0.11944791,84494.0,84493.0,0.23670599]
[1744984805954,0.11944791,84494.0,84492.0,0.23670663]
[1744984806156,0.11944791,84494.0,84493.0,0.23670599]
[1744984806362,0.36798625,84494.0,84491.0,0.2630883]
[1744984806561,0.36799154,84493.0,84489.0,0.01183586]
[1744984806880,0.23670897,84492.0,84490.0,0.2367135]
[1744984807184,0.11944791,84492.0,84490.0,0.2367135]
[1744984807490,0.11944791,84492.0,84491.0,0.2367116]
[1744984809153,0.11944791,84492.0,84490.0,0.2367135]
[1744984809372,0.11944791,84492.0,84491.0,0.2367116]
[1744984814159,0.11944791,84492.0,84491.0,0.24410298]
[1744984814566,0.11944791,84492.0,84491.0,0.08827638]
[1744984814775,0.35615671,84492.0,84491.0,0.00739138]
[1744984815002,0.11944791,84492.0,84490.0,0.23671333]
[1744984815223,0.11944791,84491.0,84490.0,0.24854905]
[1744984815666,0.11944791,84491.0,84489.0,0.24855035]
[1744984815871,0.11944791,84491.0,84490.0,0.2367144]
[1744984817102,0.11944791,84491.0,84489.0,0.24855035]
[1744984817343,0.11944791,84491.0,84490.0,0.2367144]
[1744984818872,0.13685938,84491.0,84490.0,0.2367144]
[1744984831672,0.13785938,84491.0,84490.0,0.2367144]
[1744984834937,0.12044791,84491.0,84490.0,0.2367144]
[1744984836203,0.13495997,84491.0,84490.0,0.2367144]
[1744984836405,0.01551206,84491.0,84490.0,0.2367144]
[1744984836615,0.001,84491.0,84490.0,0.2367144]
[1744984840159,0.001,84491.0,84490.0,0.23908134]
[1744984840355,0.001,84491.0,84490.0,0.2367144]
[1744984842127,0.001,84491.0,84490.0,0.23908121]
[1744984843896,0.001,84491.0,84490.0,0.57908121]
[1744984844032,0.001,84491.0,84490.0,0.5767144]
[1744984851334,0.13144,84507.0,84506.0,0.23666958]
[1744984851501,0.13244,84507.0,84506.0,0.23666958]
[1744984851739,0.15425687,84507.0,84506.0,0.23666958]
[1744984856938,0.02281687,84507.0,84506.0,0.23666958]
[1744984857315,0.001,84507.0,84506.0,0.244059]
[1744984859393,0.001,84507.0,84506.0,0.25771503]
[1744984860700,0.001,84507.0,84506.0,0.59771503]
[1744984861719,0.05896681,84512.0,84511.0,0.23665558]
[1744984862491,0.05896681,84512.0,84511.0,0.244045]
[1744984863535,0.05896681,84512.0,84511.0,0.05966059]
[1744984865231,0.05896681,84512.0,84511.0,0.05227117]
[1744984865808,0.05896681,84512.0,84511.0,0.05965978]
[1744984866924,0.05896681,84512.0,84511.0,0.05965984]
[1744984872862,0.05896681,84512.0,84511.0,0.06793265]
[1744984873702,0.05996681,84512.0,84511.0,0.06793265]
[1744984895079,0.0819016,84512.0,84511.0,0.06793265]
[1744984896079,0.05996681,84512.0,84511.0,0.06793265]
[1744984897138,0.05996681,84512.0,84511.0,0.06054398]
[1744984903627,0.06096681,84512.0,84511.0,0.06054398]
[1744984911219,0.05896681,84512.0,84511.0,0.06054398]
[1744984911437,0.05996681,84512.0,84511.0,0.06054398]
[1744984912648,0.05996681,84512.0,84511.0,0.05227117]
[1744984916896,0.05996681,84512.0,84511.0,0.06056221]
[1744984922276,0.19495557,84512.0,84511.0,0.00829104]
[1744984922474,0.23668171,84502.0,84500.0,0.412]
[1744984922694,0.14136299,84501.0,84500.0,0.23668639]
[1744984923069,0.14136299,84501.0,84499.0,0.23668919]
[1744984923481,0.14136299,84501.0,84500.0,0.23668639]
[1744984923801,0.11944791,84501.0,84500.0,0.23668639]
[1744984924318,0.1413573,84501.0,84500.0,0.23668639]
[1744984925146,0.02190939,84501.0,84500.0,0.23668639]
[1744984925656,0.01183291,84510.0,84500.0,0.23668639]
[1744984925657,0.24849682,84510.0,84506.0,0.24850208]
[1744984925834,0.11944791,84509.0,84506.0,0.24850208]
[1744984926070,0.14135783,84509.0,84506.0,0.24850208]
[1744984926435,0.37801991,84509.0,84506.0,0.24850208]
[1744984928381,0.14135783,84509.0,84507.0,0.23666615]
[1744984928797,0.37802006,84509.0,84506.0,0.24850208]
[1744984931685,0.14135783,84509.0,84507.0,0.23666526]
[1744984931891,0.37802104,84509.0,84506.0,0.24850208]
[1744984932266,0.14135783,84509.0,84507.0,0.2366658]
[1744984932500,0.14135783,84509.0,84507.0,0.23666464]
[1744984933099,0.37801966,84509.0,84507.0,0.23666558]
[1744984933625,0.37801966,84509.0,84507.0,0.06882455]
[1744984933771,0.37801966,84509.0,84506.0,0.26202818]
[1744984936119,0.37801966,84509.0,84506.0,0.02535957]
[1744984936331,0.23666473,84508.0,84506.0,0.0135261]
[1744984936532,0.1413577,84507.0,84505.0,0.236672]
[1744984936730,0.1413577,84507.0,84506.0,0.23666958]
[1744984940999,0.02190979,84507.0,84506.0,0.23666958]
[1744984941401,0.06096681,84512.0,84511.0,0.23665558]
[1744984941695,0.18041472,84512.0,84511.0,0.23665558]
[1744984941896,0.20231591,84512.0,84511.0,0.23665558]
[1744984944123,0.082868,84512.0,84511.0,0.23665558]
[1744984946941,0.06096681,84512.0,84511.0,0.24404435]
[1744984947146,0.06096681,84512.0,84511.0,0.25509089]
[1744984952036,0.06096681,84512.0,84511.0,0.59509089]
[1744984959215,0.06096681,84512.0,84511.0,1.00709089]
[1744984960791,0.06096681,84512.0,84511.0,1.00809089]
[1744984966187,0.06096681,84512.0,84511.0,0.98965558]
[1744984968239,0.06096681,84512.0,84511.0,1.00807297]
[1744984968640,0.06196681,84512.0,84511.0,1.00807297]
[1744984971207,0.05996681,84512.0,84511.0,1.00707297]
[1744984971432,0.05896681,84512.0,84511.0,1.00707297]
[1744984971616,0.05996681,84512.0,84511.0,1.00707297]
[1744984981673,0.05896681,84512.0,84511.0,1.00707297]
[1744984982313,0.05896681,84512.0,84511.0,0.99604308]
[1744984984124,0.05896681,84512.0,84511.0,1.0070916]
[1744984987803,0.05996681,84512.0,84511.0,1.0070916]
[1744984989046,0.05996681,84512.0,84511.0,0.99604308]
[1744984992167,0.06096681,84512.0,84511.0,0.0073875]
[1744984992458,0.08031448,84512.0,84511.0,0.24404308]
[1744984992676,0.19976239,84512.0,84511.0,0.24404308]
[1744984993553,0.19976239,84512.0,84508.0,0.23665842]
[1744984993773,0.19976239,84512.0,84510.0,0.23665657]
[1744984993774,0.11944791,84511.0,84510.0,0.23665657]
[1744984993986,0.13879343,84511.0,84510.0,0.23665657]
[1744984994653,0.11944791,84511.0,84510.0,0.23665657]
[1744984995056,0.06096681,84512.0,84510.0,0.23665657]
[1744984998935,0.06096681,84512.0,84511.0,0.23665558]
[1744985000911,0.06096681,84512.0,84511.0,0.2476996]
[1744985001697,0.06096681,84512.0,84511.0,0.23665558]
[1744985017396,0.06096681,84512.0,84511.0,0.57665558]
[1744985017594,0.06196681,84512.0,84511.0,0.57665558]
[1744985019633,0.06196681,84512.0,84511.0,0.58771121]
[1744985020442,0.06196681,84512.0,84511.0,0.57665558]
[1744985022564,0.06196681,84512.0,84511.0,0.58771242]
[1744985023067,0.0008424,84523.0,84520.0,0.01183151]
[1744985023274,0.0048424,84529.0,84520.0,0.01183151]
[1744985023275,0.0048424,84529.0,84523.0,0.57662198]
[1744985023468,0.0048424,84529.0,84528.0,0.57660798]
[1744985023849,0.00488748,84529.0,84528.0,0.57660798]
[1744985024264,0.00488748,84529.0,84528.0,0.58766482]
[1744985028585,0.00488748,84529.0,84528.0,0.99966482]
[1744985028886,0.00488748,84529.0,84528.0,0.98860798]
[1744985030714,0.00488748,84529.0,84528.0,1.00159527]
[1744985031325,0.00488748,84529.0,84528.0,1.00359527]
[1744985039466,0.00488748,84529.0,84528.0,0.002]
[1744985039776,0.12433539,84529.0,84528.0,0.23860798]
[1744985039975,0.14375698,84529.0,84528.0,0.23860798]
[1744985041653,0.14375698,84529.0,84528.0,0.23660798]
[1744985042819,0.14375698,84529.0,84525.0,0.34]
[1744985043117,0.11944791,84528.0,84526.0,0.24844425]
[1744985043476,0.01942145,84527.0,84526.0,0.24844425]
[1744985048087,0.01942145,84527.0,84524.0,0.23661683]
[1744985048246,0.01942145,84527.0,84510.0,0.29737931]
[1744985048247,0.01183123,84522.0,84518.0,0.23663566]
[1744985048455,0.11944791,84521.0,84519.0,0.23663206]
[1744985048659,0.01933066,84520.0,84519.0,0.23663206]
[1744985048883,0.13877857,84520.0,84519.0,0.23663206]
[1744985051425,0.13877857,84520.0,84518.0,0.24846695]
[1744985051630,0.01183179,84518.0,84514.0,0.002]
[1744985051832,0.01933046,84517.0,84515.0,0.23664438]
[1744985052032,0.01933046,84517.0,84514.0,0.002]
[1744985052236,0.23664438,84515.0,84514.0,0.002]
[1744985052566,0.01933032,84515.0,84514.0,0.002]
[1744985053692,0.2559747,84515.0,84514.0,0.002]
[1744985069297,0.01933032,84515.0,84514.0,0.002]
[1744985069519,0.13877823,84515.0,84514.0,0.002]
[1744985069708,0.38996346,84515.0,84514.0,0.002]
[1744985073013,0.38996346,84515.0,84514.0,0.23864718]
[1744985073014,0.13877823,84515.0,84514.0,0.23864718]
[1744985073462,0.11944791,84515.0,84514.0,0.23864718]
[1744985073821,0.13869105,84515.0,84514.0,0.23864718]
[1744985076865,0.11944791,84515.0,84514.0,0.23864718]
[1744985077615,0.24846153,84522.0,84519.0,0.23663135]
[1744985077792,0.11944791,84521.0,84519.0,0.23663135]
[1744985077942,0.13869145,84521.0,84519.0,0.23663135]
[1744985078717,0.37531911,84521.0,84519.0,0.23863135]
[1744985079545,0.13869145,84521.0,84519.0,0.23863135]
[1744985079956,0.37531928,84521.0,84519.0,0.002]
[1744985080359,0.37531928,84521.0,84519.0,0.23863284]
[1744985083239,0.37531928,84521.0,84519.0,0.002]
[1744985083468,0.13869145,84521.0,84520.0,0.23663038]
[1744985086866,0.01924354,84521.0,84520.0,0.23663038]
[1744985087179,0.13708,84525.0,84524.0,0.23661918]
[1744985087375,0.27576776,84525.0,84524.0,0.23661918]
[1744985087625,0.27576776,84525.0,84524.0,0.24768058]
[1744985091429,0.27576776,84525.0,84524.0,0.24968058]
[1744985093252,0.27576776,84525.0,84524.0,0.23861918]
[1744985096714,0.13868776,84525.0,84524.0,0.23861918]
[1744985096911,0.13868776,84525.0,84524.0,0.002]
[1744985097302,0.13868776,84525.0,84524.0,0.23861918]
[1744985097498,0.13868776,84525.0,84524.0,0.002]
[1744985097705,0.13868776,84525.0,84524.0,0.23861918]
[1744985098760,0.13868776,84525.0,84524.0,0.002]
[1744985099330,0.13868776,84525.0,84524.0,0.23861918]
[1744985099669,0.13868776,84525.0,84524.0,0.002]
[1744985099967,0.37530414,84525.0,84524.0,0.002]
[1744985101591,0.24845016,84524.0,84521.0,0.23662493]
[1744985101792,0.13127886,84524.0,84522.0,0.2366237]
[1744985101994,0.01925245,84523.0,84521.0,0.23862493]
[1744985102627,0.01925245,84523.0,84522.0,0.23662478]
[1744985105013,0.25587443,84523.0,84521.0,0.23862493]
[1744985105564,0.25587443,84523.0,84521.0,0.002]